bitfinex/quotes_BTCUSD_20240819
["timestamp","ask_amount","ask_price","bid_price","bid_amount"]
[1724040121300,0.000822,58832.0,58831.0,1.50437318]
[1724040122254,0.000822,58832.0,58831.0,1.51837318]
[1724040123657,0.000822,58832.0,58831.0,1.51637318]
[1724040123863,0.000822,58832.0,58831.0,1.51837318]
[1724040124099,0.000822,58832.0,58831.0,1.51637318]
[1724040124324,0.000822,58832.0,58831.0,1.51837318]
[1724040124796,0.000822,58832.0,58831.0,1.51541874]
[1724040125791,0.000822,58832.0,58831.0,1.27744974]
[1724040128774,0.000822,58832.0,58831.0,1.03948074]
[1724040128999,0.000822,58832.0,58831.0,0.8617952]
[1724040129230,0.000822,58832.0,58831.0,1.0059952]
[1724040130374,0.000822,58832.0,58831.0,1.17854974]
[1724040130805,0.000822,58832.0,58831.0,1.18150418]
[1724040131023,0.000822,58832.0,58831.0,1.42047318]
[1724040131450,0.000822,58832.0,58831.0,1.52047318]
[1724040133185,0.000822,58832.0,58831.0,1.51647318]
[1724040133823,0.000822,58832.0,58831.0,1.51847318]
[1724040134241,0.000822,58832.0,58831.0,1.51647318]
[1724040135139,0.000822,58832.0,58831.0,1.51551874]
[1724040135585,0.000822,58832.0,58831.0,1.51647318]
[1724040136644,0.000822,58832.0,58831.0,1.51847318]
[1724040137758,0.000822,58832.0,58831.0,1.51647318]
[1724040138794,0.000822,58832.0,58831.0,1.51847318]
[1724040141401,0.000822,58832.0,58831.0,1.51647318]
[1724040143558,0.000822,58832.0,58831.0,1.51551874]
[1724040143763,0.000822,58832.0,58831.0,1.27754974]
[1724040145058,0.000822,58832.0,58831.0,1.21154974]
[1724040148807,0.000822,58832.0,58831.0,1.13334974]
[1724040149015,0.00070302,58832.0,58831.0,1.13334974]
[1724040149664,0.00070302,58832.0,58831.0,1.28280418]
[1724040149873,0.00070302,58832.0,58831.0,1.52077318]
[1724040150077,0.00070302,58832.0,58831.0,1.52277318]
[1724040150289,0.00070302,58832.0,58831.0,1.58677318]
[1724040150503,0.00070302,58832.0,58831.0,1.70267318]
[1724040152612,0.00070302,58832.0,58831.0,1.87667318]
[1724040154753,0.00070302,58832.0,58831.0,1.87267318]
[1724040156458,0.00070302,58832.0,58831.0,1.87171874]
[1724040156663,0.00070302,58832.0,58831.0,1.58181874]
[1724040159548,0.00070302,58832.0,58831.0,1.09734974]
[1724040159768,0.14700302,58832.0,58831.0,0.79538074]
[1724040160213,0.06610302,58832.0,58831.0,0.79538074]
[1724040160425,0.00070302,58832.0,58831.0,0.79538074]
[1724040164483,0.14120302,58832.0,58831.0,0.79538074]
[1724040166900,0.06300302,58832.0,58831.0,0.79538074]
[1724040167817,0.00070302,58832.0,58831.0,0.79538074]
[1724040168240,0.00070302,58832.0,58831.0,1.03334974]
[1724040168466,0.00070302,58832.0,58831.0,0.79538074]
[1724040170776,0.00070302,58832.0,58831.0,1.03334974]
[1724040170984,0.00070302,58832.0,58831.0,0.79538074]
[1724040173498,0.14350302,58832.0,58831.0,0.79538074]
[1724040174123,0.14350302,58832.0,58831.0,0.3858572]
[1724040174532,0.14350302,58832.0,58831.0,0.1478882]
[1724040174533,0.15111557,58832.0,58831.0,0.1478882]
[1724040177180,0.15111557,58832.0,58831.0,0.0289042]
[1724040177626,0.27009757,58832.0,58831.0,0.0289042]
[1724040177851,0.50806257,58832.0,58831.0,0.0289042]
[1724040178064,0.62406257,58832.0,58831.0,0.0289042]
[1724040178676,0.62406257,58832.0,58831.0,0.0149042]
[1724040178878,0.62406257,58832.0,58831.0,0.0099042]
[1724040179083,0.86202757,58832.0,58831.0,0.0099042]
[1724040179289,0.9129786,58832.0,58831.0,0.0169042]
[1724040179496,0.9129786,58832.0,58831.0,0.0099042]
[1724040179702,0.86202757,58832.0,58831.0,0.0099042]
[1724040179912,0.86202757,58832.0,58831.0,0.0159042]
[1724040180118,0.74602757,58832.0,58831.0,0.0159042]
[1724040180342,0.50806257,58832.0,58831.0,0.0159042]
[1724040180993,0.74602757,58832.0,58831.0,0.0159042]
[1724040181198,0.50806257,58832.0,58831.0,0.0069042]
[1724040181400,0.50806257,58832.0,58831.0,0.0129042]
[1724040181580,0.50806257,58832.0,58831.0,0.0069042]
[1724040181790,0.74602757,58832.0,58831.0,0.0069042]
[1724040182020,0.50806257,58832.0,58831.0,0.0079042]
[1724040182227,0.27009757,58832.0,58831.0,0.0009042]
[1724040182434,0.27009757,58832.0,58831.0,0.0069042]
[1724040182636,0.27009757,58832.0,58831.0,0.0129042]
[1724040183080,0.15111557,58832.0,58831.0,0.0129042]
[1724040187136,0.00831557,58832.0,58831.0,0.3698572]
[1724040187370,0.00831557,58832.0,58831.0,0.6078262]
[1724040187573,0.00070302,58832.0,58831.0,0.6078262]
[1724040193554,0.00070302,58832.0,58831.0,0.6722262]
[1724040195443,0.06080302,58832.0,58831.0,0.1318882]
[1724040196055,0.06834653,58832.0,58831.0,0.1318882]
[1724040201664,0.06834653,58832.0,58831.0,0.0129042]
[1724040202086,0.18732853,58832.0,58831.0,0.0129042]
[1724040203831,0.74515853,58832.0,58831.0,0.0129042]
[1724040207816,0.79614349,58832.0,58831.0,0.0129042]
[1724040208066,0.79614503,58832.0,58831.0,0.0129042]
[1724040208242,0.74515853,58832.0,58831.0,0.0129042]
[1724040209867,0.12722853,58832.0,58831.0,0.0129042]
[1724040216486,0.17821968,58832.0,58831.0,0.0129042]
[1724040217251,0.00824653,58832.0,58831.0,0.0129042]
[1724040217384,0.00824653,58832.0,58831.0,0.0957042]
[1724040217804,0.00824653,58832.0,58831.0,0.2146882]
[1724040218007,0.00824653,58832.0,58831.0,0.2760882]
[1724040218219,0.00070302,58832.0,58831.0,0.2760882]
[1724040218635,0.00070302,58832.0,58831.0,0.28612326]
[1724040218844,0.00070302,58832.0,58831.0,0.52409226]
[1724040221027,0.00070302,58832.0,58831.0,0.5140572]
[1724040223027,0.00070302,58832.0,58831.0,0.52417063]
[1724040223439,0.00070302,58832.0,58831.0,0.76213963]
[1724040224256,0.00070302,58832.0,58831.0,0.7520262]
[1724040226527,0.00070302,58832.0,58831.0,1.16154974]
[1724040230232,0.00070302,58832.0,58831.0,0.3698572]
[1724040232637,0.00070302,58832.0,58831.0,0.0129042]
[1724040233088,0.05171432,58832.0,58831.0,0.0129042]
[1724040233629,0.11968502,58832.0,58831.0,0.0129042]
[1724040233858,0.78702632,58832.0,58831.0,0.0129042]
[1724040234079,0.8672178,58832.0,58831.0,0.0129042]
[1724040234343,0.9692404,58832.0,58831.0,0.0129042]
[1724040235131,1.20689178,58832.0,58831.0,0.0129042]
[1724040235329,1.23285441,58832.0,58831.0,0.0129042]
[1724040237555,1.47381941,58832.0,58831.0,0.0129042]
[1724040237756,1.7223542,58832.0,58831.0,0.0129042]
[1724040238163,1.89454798,58832.0,58831.0,0.0069042]
[1724040238362,1.7223542,58832.0,58831.0,0.0019042]
[1724040238558,1.7193542,58832.0,58831.0,0.0019042]
[1724040238966,1.7193542,58832.0,58831.0,0.0009042]
[1724040238967,1.86822598,58832.0,58831.0,0.0009042]
[1724040239116,1.7213542,58832.0,58831.0,0.0019042]
[1724040239515,1.71386884,58832.0,58831.0,0.0019042]
[1724040240343,1.71186884,58832.0,58831.0,0.0019042]
[1724040241324,1.47390384,58832.0,58831.0,0.0019042]
[1724040241522,1.39451794,58832.0,58831.0,0.0019042]
[1724040241752,1.34434625,58832.0,58831.0,0.0029042]
[1724040242095,1.34434625,58832.0,58831.0,0.0019042]
[1724040242096,1.23080044,58832.0,58831.0,0.0019042]
[1724040242298,1.23380044,58832.0,58831.0,0.0019042]
[1724040242501,1.10638125,58832.0,58831.0,0.0019042]
[1724040242630,1.23080044,58832.0,58831.0,0.0009042]
[1724040242834,1.23080044,58832.0,58831.0,0.0019042]
[1724040242835,1.2401568,58832.0,58831.0,0.0019042]
[1724040243193,1.2351568,58832.0,58831.0,0.0019042]
[1724040243355,1.08475517,58832.0,58831.0,0.0019042]
[1724040243555,0.58730485,58832.0,58831.0,0.0019042]
[1724040243894,0.43608556,58832.0,58831.0,0.0019042]
[1724040244301,0.79005056,58832.0,58831.0,0.0019042]
[1724040244505,0.79005056,58832.0,58831.0,0.0009042]
[1724040244851,0.71361502,58832.0,58831.0,0.0009042]
[1724040245249,1.08489102,58832.0,58831.0,0.0009042]
[1724040245446,0.98297296,58832.0,58831.0,0.0009042]
[1724040245979,1.11037459,58832.0,58831.0,0.0009042]
[1724040246150,0.98297296,58832.0,58831.0,0.0009042]
[1724040247554,0.98227366,58832.0,58831.0,0.0009042]
[1724040248175,1.08417887,58832.0,58831.0,0.0009042]
[1724040248377,0.98227366,58832.0,58831.0,0.0009042]
[1724040248568,1.08417939,58832.0,58831.0,0.0009042]
[1724040251456,0.77911502,58832.0,58831.0,0.0009042]
[1724040251657,0.85553255,58832.0,58831.0,0.0009042]
[1724040252081,0.79003255,58832.0,58831.0,0.0009042]
[1724040252724,0.79003255,58832.0,58831.0,0.0773042]
[1724040253772,0.07912055,58832.0,58831.0,0.0773042]
[1724040253980,0.00270302,58832.0,58831.0,0.0773042]
[1724040255044,0.00070302,58832.0,58831.0,0.0773042]
[1724040255255,0.11968502,58832.0,58831.0,0.0773042]
[1724040255471,0.00270302,58832.0,58831.0,0.0773042]
[1724040255674,0.00070302,58832.0,58831.0,0.0773042]
[1724040255855,0.00070302,58832.0,58831.0,0.0883042]
[1724040256058,0.00070302,58832.0,58831.0,0.2072882]
[1724040257624,0.00070302,58832.0,58831.0,0.0983042]
[1724040265597,0.00070302,58832.0,58831.0,0.0219042]
[1724040271479,0.59561502,58832.0,58831.0,0.0219042]
[1724040271680,0.74081502,58832.0,58831.0,0.0219042]
[1724040272345,0.74081502,58832.0,58831.0,0.0119042]
[1724040272566,1.1932607,58832.0,58831.0,0.0119042]
[1724040272760,1.1932607,58832.0,58831.0,0.0069042]
[1724040272761,1.50837946,58832.0,58831.0,0.0069042]
[1724040272983,1.60737946,58832.0,58831.0,0.0069042]
[1724040274265,1.60737946,58832.0,58831.0,0.0009042]
[1724040274485,1.60737946,58832.0,58831.0,0.0069042]
[1724040274701,1.60737946,58832.0,58831.0,0.0129042]
[1724040274934,1.60737946,58832.0,58831.0,0.0009042]
[1724040275371,1.61137946,58832.0,58831.0,0.0009042]
[1724040275581,1.95423901,58832.0,58831.0,0.0009042]
[1724040276050,1.84376171,58832.0,58831.0,0.0009042]
[1724040278176,1.84876171,58832.0,58831.0,0.0009042]
[1724040278892,1.84876171,58832.0,58831.0,0.0003888]
[1724040278893,2.01967445,58832.0,58831.0,0.0003888]
[1724040279186,1.84776171,58832.0,58831.0,0.0003888]
[1724040279434,2.01731625,58832.0,58831.0,0.0013888]
[1724040279908,2.02131625,58832.0,58831.0,0.0023888]
[1724040280899,2.19322899,58832.0,58831.0,0.0023888]
[1724040281145,2.19322899,58832.0,58831.0,0.0013888]
[1724040281375,2.19422899,58832.0,58831.0,0.0023888]
[1724040282764,2.18922899,58832.0,58831.0,0.0003888]
[1724040282994,2.19922899,58832.0,58831.0,0.0023888]
[1724040283231,2.19122899,58832.0,58831.0,0.0013888]
[1724040283465,2.02731625,58832.0,58831.0,0.0023888]
[1724040284867,2.26528125,58832.0,58831.0,0.0023888]
[1724040285129,2.2559077,58832.0,58831.0,0.0013888]
[1724040285611,2.2679077,58832.0,58831.0,0.0023888]
[1724040286379,2.43965257,58832.0,58831.0,0.0023888]
[1724040286624,2.2679077,58832.0,58831.0,0.0023888]
[1724040289034,2.2679077,58832.0,58831.0,0.00108688]
[1724040290048,2.26589535,58832.0,58831.0,0.00108688]
[1724040294368,2.26516336,58832.0,58831.0,0.00108688]
[1724040295573,2.26516336,58832.0,58831.0,0.00199108]
[1724040296565,2.26516336,58832.0,58825.0,0.0009042]
[1724040296566,1.218355,58826.0,58825.0,0.0009042]
[1724040296770,1.74665117,58826.0,58825.0,0.0009042]
[1724040297980,1.75265117,58826.0,58825.0,0.0019042]
[1724040298385,1.74965117,58826.0,58825.0,0.0019042]
[1724040298587,1.75965117,58826.0,58825.0,0.0029042]
[1724040298789,1.93120571,58826.0,58825.0,0.0029042]
[1724040298991,1.93140424,58826.0,58825.0,0.0029042]
[1724040299194,1.93340424,58826.0,58825.0,0.0029042]
[1724040299665,1.93340424,58826.0,58825.0,0.00136737]
[1724040300090,1.94330225,58826.0,58825.0,0.00136737]
[1724040301931,1.86160225,58826.0,58825.0,0.00136737]
[1724040303371,1.85760225,58826.0,58825.0,0.00136737]
[1724040303597,1.86160225,58826.0,58825.0,0.00136737]
[1724040306683,1.86153067,58826.0,58825.0,0.00136737]
[1724040307407,2.01415307,58826.0,58825.0,0.00136737]
[1724040308235,0.836035,58821.0,58820.0,0.0009042]
[1724040308439,1.42708062,58821.0,58820.0,0.0009042]
[1724040308666,1.6272699,58821.0,58820.0,0.0009042]
[1724040308868,1.8652799,58821.0,58820.0,0.0009042]
[1724040309351,1.8652799,58821.0,58818.0,0.0009042]
[1724040309352,1.076081,58819.0,58818.0,0.0009042]
[1724040309577,0.357087,58809.0,58808.0,0.0769]
[1724040309867,1.36408317,58809.0,58808.0,0.0769]
[1724040311473,1.49135572,58809.0,58808.0,0.0769]
[1724040311933,1.49135572,58809.0,58808.0,0.0799]
[1724040312606,1.59598321,58809.0,58808.0,0.0799]
[1724040312824,1.36151022,58809.0,58808.0,0.0799]
[1724040313056,1.36150776,58809.0,58808.0,0.0799]
[1724040313272,1.28515777,58809.0,58808.0,0.0799]
[1724040313496,1.33605442,58809.0,58808.0,0.0799]
[1724040313715,1.33837998,58809.0,58808.0,0.0799]
[1724040313933,1.46389043,58809.0,58808.0,0.0799]
[1724040314154,1.18053028,58809.0,58808.0,0.0799]
[1724040314381,1.25687379,58809.0,58808.0,0.0799]
[1724040315071,1.30609147,58809.0,58808.0,0.0799]
[1724040315300,1.35931853,58809.0,58808.0,0.0799]
[1724040315528,1.40790959,58809.0,58808.0,0.0799]
[1724040315948,1.5614278,58809.0,58808.0,0.0799]
[1724040316161,1.40790983,58809.0,58808.0,0.0799]
[1724040316366,1.40790983,58809.0,58808.0,0.1406]
[1724040316367,1.30609147,58809.0,58808.0,0.1406]
[1724040316782,1.40794073,58809.0,58808.0,0.1406]
[1724040317413,1.43336402,58809.0,58808.0,0.1406]
[1724040318249,1.30609147,58809.0,58808.0,0.1406]
[1724040319313,1.36939071,58809.0,58808.0,0.1406]
[1724040320131,1.36979308,58809.0,58808.0,0.1406]
[1724040320319,1.36979308,58809.0,58808.0,0.1415042]
[1724040322666,1.36979308,58809.0,58808.0,0.0808042]
[1724040324136,1.30649384,58809.0,58808.0,0.0808042]
[1724040324584,1.18053028,58809.0,58808.0,0.0808042]
[1724040324792,1.30667428,58809.0,58808.0,0.0808042]
[1724040326424,0.483231,58809.0,58808.0,0.1419042]
[1724040326862,0.43353957,58809.0,58808.0,0.1419042]
[1724040327295,0.357087,58809.0,58808.0,0.1419042]
[1724040328174,0.119027,58810.0,58809.0,0.1448]
[1724040328382,0.0509648,58812.0,58810.0,0.1448]
[1724040328601,0.1019296,58815.0,58812.0,0.1448]
[1724040328602,0.0509648,58813.0,58812.0,0.1448]
[1724040329288,0.0509648,58813.0,58811.0,0.146]
[1724040329289,0.16696567,58813.0,58811.0,0.146]
[1724040329501,0.16696567,58813.0,58808.0,0.2389642]
[1724040329502,0.119027,58810.0,58809.0,0.002]
[1724040329739,0.235027,58810.0,58809.0,0.002]
[1724040329965,0.235027,58810.0,58809.0,0.1418]
[1724040331309,0.235027,58810.0,58809.0,0.1488]
[1724040331310,0.001,58810.0,58809.0,0.1488]
[1724040331567,0.002,58810.0,58809.0,0.1518]
[1724040331751,0.0201395,58810.0,58809.0,0.508887]
[1724040331972,0.002,58810.0,58809.0,0.508887]
[1724040332196,0.01995495,58810.0,58809.0,0.508887]
[1724040332403,0.002,58810.0,58809.0,0.508887]
[1724040332750,0.002,58810.0,58809.0,0.746945]
[1724040333262,0.002,58810.0,58809.0,0.508887]
[1724040333757,0.002,58810.0,58809.0,0.746945]
[1724040333966,0.002,58810.0,58809.0,0.508887]
[1724040334392,0.001,58810.0,58809.0,0.739945]
[1724040334591,0.001,58810.0,58809.0,0.501887]
[1724040334795,0.05178767,58818.0,58816.0,0.0632]
[1724040334997,0.05178767,58818.0,58817.0,0.1451]
[1724040334998,0.17079867,58818.0,58817.0,0.1451]
[1724040336506,0.119833,58818.0,58817.0,0.1481]
[1724040336705,0.000822,58818.0,58817.0,0.1521]
[1724040337341,0.000822,58818.0,58817.0,0.271113]
[1724040338218,0.000822,58818.0,58817.0,0.268113]
[1724040338631,0.000822,58818.0,58817.0,0.274113]
[1724040338832,0.000822,58818.0,58817.0,0.264113]
[1724040339255,0.001822,58818.0,58817.0,0.752165]
[1724040339456,0.001822,58818.0,58817.0,0.745165]
[1724040339663,0.001822,58818.0,58817.0,0.740165]
[1724040339872,0.002822,58818.0,58817.0,0.749165]
[1724040340134,0.003822,58818.0,58817.0,0.758165]
[1724040340314,0.003822,58818.0,58817.0,1.16774554]
[1724040342039,0.002822,58818.0,58817.0,1.16774554]
[1724040342239,0.001822,58818.0,58817.0,1.15874554]
[1724040342446,0.000822,58818.0,58817.0,1.16374554]
[1724040342855,0.000822,58818.0,58817.0,1.17774554]
[1724040343232,0.000822,58818.0,58817.0,1.16374554]
[1724040343642,0.000822,58818.0,58817.0,1.17774554]
[1724040347788,0.000822,58818.0,58817.0,0.768165]
[1724040350193,0.000822,58818.0,58817.0,0.93971954]
[1724040354771,0.000822,58818.0,58817.0,0.70169354]
[1724040355409,0.000822,58818.0,58817.0,0.292113]
[1724040355614,0.000822,58818.0,58817.0,0.466939]
[1724040356240,0.000822,58818.0,58817.0,0.028]
[1724040356645,0.01903958,58818.0,58817.0,0.028]
[1724040357130,0.01903958,58818.0,58817.0,0.1106]
[1724040357403,0.01903958,58818.0,58817.0,0.0826]
[1724040357583,0.02003958,58818.0,58817.0,0.0966]
[1724040357988,0.02003958,58818.0,58817.0,0.439639]
[1724040358163,0.02103958,58818.0,58817.0,0.275913]
[1724040358370,0.002822,58818.0,58817.0,0.014]
[1724040358575,0.002822,58818.0,58817.0,0.0289042]
[1724040358797,0.02103958,58818.0,58817.0,0.0289042]
[1724040358993,0.002822,58818.0,58817.0,0.0289042]
[1724040359270,0.02103958,58818.0,58817.0,0.0149042]
[1724040359471,0.002822,58818.0,58817.0,0.0149042]
[1724040359649,0.02103958,58818.0,58817.0,0.0289042]
[1724040359802,0.002822,58818.0,58817.0,0.2908172]
[1724040360007,0.02103958,58818.0,58817.0,0.2908172]
[1724040360211,0.002822,58818.0,58817.0,0.2908172]
[1724040360455,0.02103958,58818.0,58817.0,0.77026938]
[1724040360639,0.002822,58818.0,58817.0,0.7668692]
[1724040367827,0.002822,58818.0,58817.0,0.93842374]
[1724040374015,0.002822,58818.0,58817.0,0.2305172]
[1724040374308,0.121833,58818.0,58817.0,0.0289042]
[1724040374510,0.02102481,58818.0,58817.0,0.0289042]
[1724040380216,0.02102481,58818.0,58817.0,0.1742042]
[1724040381606,0.02102481,58818.0,58817.0,0.1108042]
[1724040384998,0.02102481,58818.0,58817.0,0.0289042]
[1724040390120,0.20363581,58818.0,58817.0,0.0289042]
[1724040390792,0.25464107,58818.0,58817.0,0.0289042]
[1724040391213,0.20363581,58818.0,58817.0,0.0289042]
[1724040391618,0.79567981,58818.0,58817.0,0.0289042]
[1724040391823,0.87577981,58818.0,58817.0,0.0289042]
[1724040392028,1.35106747,58818.0,58817.0,0.0289042]
[1724040392674,1.35106747,58818.0,58817.0,0.0149042]
[1724040393191,1.34906747,58818.0,58817.0,0.0009042]
[1724040393415,1.34906747,58818.0,58817.0,0.0049042]
[1724040393899,1.49672679,58818.0,58817.0,0.0049042]
[1724040394115,1.34906747,58818.0,58817.0,0.0049042]
[1724040394357,1.50459893,58818.0,58817.0,0.0009042]
[1724040394535,1.66829447,58818.0,58817.0,0.0049042]
[1724040394767,1.66829447,58818.0,58817.0,0.0089042]
[1724040394987,1.82132534,58818.0,58817.0,0.0089042]
[1724040395188,1.82132534,58818.0,58817.0,0.0049042]
[1724040395397,1.48582701,58818.0,58817.0,0.0049042]
[1724040395600,1.48582701,58818.0,58817.0,0.0059042]
[1724040395601,1.43027247,58818.0,58817.0,0.0059042]
[1724040396030,1.43027247,58818.0,58817.0,0.0009042]
[1724040396452,1.3780732,58818.0,58817.0,0.0009042]
[1724040396627,1.3770732,58818.0,58817.0,0.0009042]
[1724040397046,1.3780732,58818.0,58817.0,0.0009042]
[1724040397251,1.43128328,58818.0,58817.0,0.0009042]
[1724040397453,1.3780732,58818.0,58817.0,0.0009042]
[1724040397654,1.43128235,58818.0,58817.0,0.0009042]
[1724040398676,1.73582521,58818.0,58817.0,0.0009042]
[1724040398878,1.90437975,58818.0,58817.0,0.0009042]
[1724040399087,2.05727117,58818.0,58817.0,0.0009042]
[1724040399305,2.29529317,58818.0,58817.0,0.0009042]
[1724040399510,1.85572831,58818.0,58817.0,0.0009042]
[1724040399921,1.53128235,58818.0,58817.0,0.0009042]
[1724040400524,1.47218723,58818.0,58817.0,0.0009042]
[1724040402533,1.21116523,58818.0,58817.0,0.0009042]
[1724040402734,1.15820088,58818.0,58817.0,0.0009042]
[1724040403153,1.13273037,58818.0,58817.0,0.0009042]
[1724040403592,1.08180612,58818.0,58817.0,0.0009042]
[1724040403930,1.15820088,58818.0,58817.0,0.0009042]
[1724040404156,1.08180612,58818.0,58817.0,0.0009042]
[1724040404608,0.07094499,58818.0,58817.0,0.0623042]
[1724040404780,0.02002481,58818.0,58817.0,0.0623042]
[1724040404981,0.02002481,58818.0,58817.0,0.1813172]
[1724040405182,0.02002481,58818.0,58817.0,0.1392042]
[1724040406207,0.01902481,58818.0,58817.0,0.1392042]
[1724040406694,0.02002481,58818.0,58817.0,0.1492042]
[1724040406894,0.02002481,58818.0,58817.0,0.1392042]
[1724040407371,0.02102481,58818.0,58817.0,0.1502042]
[1724040408108,0.02102481,58818.0,58817.0,0.1612042]
[1724040410767,0.02102481,58818.0,58817.0,0.0998042]
[1724040412879,0.833189,58810.0,58795.0,0.0618031]
[1724040413100,1.35643411,58810.0,58795.0,0.0009031]
[1724040413336,1.92352268,58810.0,58795.0,0.0009031]
[1724040413571,2.01270581,58810.0,58795.0,0.0009031]
[1724040413806,2.18426035,58810.0,58795.0,0.0009031]
[1724040414026,2.21197034,58810.0,58795.0,0.0009031]
[1724040414242,2.0404158,58810.0,58795.0,0.0009031]
[1724040414458,2.1347292,58810.0,58809.0,0.0019042]
[1724040414887,2.1357292,58810.0,58809.0,0.0019042]
[1724040415371,2.1347292,58810.0,58809.0,0.0019042]
[1724040415511,1.98198603,58810.0,58809.0,0.0019042]
[1724040415713,1.97798603,58810.0,58809.0,0.0019042]
[1724040415921,2.1307292,58810.0,58809.0,0.0019042]
[1724040416151,2.31128374,58810.0,58809.0,0.0029042]
[1724040416340,2.15854057,58810.0,58809.0,0.0029042]
[1724040417417,1.9337955,58810.0,58809.0,0.0029042]
[1724040422898,1.9330215,58810.0,58809.0,0.0029042]
[1724040424069,1.9340215,58810.0,58809.0,0.0029042]
[1724040424425,1.9360215,58810.0,58809.0,0.0029042]
[1724040424549,1.9330215,58810.0,58809.0,0.0029042]
[1724040424765,1.8501215,58810.0,58809.0,0.0029042]
[1724040424975,1.95177441,58810.0,58809.0,0.0029042]
[1724040425647,2.12332895,58810.0,58809.0,0.0029042]
[1724040426280,1.46219103,58810.0,58809.0,0.0029042]
[1724040426486,1.04627788,58810.0,58809.0,0.0029042]
[1724040427353,0.99545558,58810.0,58809.0,0.0029042]
[1724040427499,1.04627805,58810.0,58809.0,0.0029042]
[1724040427706,1.04627805,58810.0,58809.0,0.0850042]
[1724040427904,0.91509535,58810.0,58809.0,0.0850042]
[1724040428341,0.91509535,58810.0,58809.0,0.0029042]
[1724040429268,1.32295275,58810.0,58809.0,0.0029042]
[1724040430171,1.15477288,58810.0,58809.0,0.0029042]
[1724040430406,1.20559535,58810.0,58809.0,0.0029042]
[1724040431083,1.15477288,58810.0,58809.0,0.0029042]
[1724040431494,1.26295558,58810.0,58809.0,0.0029042]
[1724040431900,1.28595558,58810.0,58809.0,0.0029042]
[1724040432098,1.43742125,58810.0,58809.0,0.0029042]
[1724040432309,1.54935493,58810.0,58809.0,0.0029042]
[1724040432715,1.57912125,58810.0,58809.0,0.0029042]
[1724040432923,1.65537178,58810.0,58809.0,0.0029042]
[1724040433744,1.57912125,58810.0,58809.0,0.0029042]
[1724040433975,1.42765558,58810.0,58809.0,0.0029042]
[1724040434447,1.50390611,58810.0,58809.0,0.0029042]
[1724040435127,1.42330611,58810.0,58809.0,0.0029042]
[1724040435579,1.58067611,58810.0,58809.0,0.0029042]
[1724040435790,1.34705558,58810.0,58809.0,0.0029042]
[1724040436001,1.58044741,58810.0,58809.0,0.0029042]
[1724040436199,1.34705558,58810.0,58809.0,0.0029042]
[1724040436417,1.40648064,58810.0,58809.0,0.0029042]
[1724040437515,1.56789713,58810.0,58809.0,0.0029042]
[1724040438135,1.46675161,58810.0,58809.0,0.0029042]
[1724040438335,1.56841898,58810.0,58809.0,0.0029042]
[1724040438570,1.33417207,58810.0,58809.0,0.0029042]
[1724040438984,0.99545558,58810.0,58809.0,0.0029042]
[1724040439188,1.18795639,58810.0,58809.0,0.0029042]
[1724040440409,1.11165558,58810.0,58809.0,0.0029042]
[1724040440610,0.79329,58810.0,58809.0,0.0850042]
[1724040440857,0.74241888,58810.0,58809.0,0.0850042]
[1724040441548,0.74241888,58810.0,58809.0,0.0840042]
[1724040441549,0.73841888,58810.0,58809.0,0.0840042]
[1724040441910,0.72941888,58810.0,58809.0,0.0830042]
[1724040442112,0.73241888,58810.0,58809.0,0.0830042]
[1724040442931,0.74041888,58810.0,58809.0,0.0840042]
[1724040443423,0.73241888,58810.0,58809.0,0.0830042]
[1724040443836,0.73441888,58810.0,58809.0,0.0830042]
[1724040448705,0.97247288,58810.0,58809.0,0.0830042]
[1724040448909,1.07656422,58810.0,58809.0,0.0830042]
[1724040449138,1.07486381,58810.0,58809.0,0.0830042]
[1724040449349,1.02164087,58810.0,58809.0,0.0830042]
[1724040449548,1.07486688,58810.0,58809.0,0.0830042]
[1724040450357,1.07487713,58810.0,58809.0,0.0830042]
[1724040451313,1.02165112,58810.0,58809.0,0.0830042]
[1724040451538,1.0239953,58810.0,58809.0,0.0830042]
[1724040452439,1.04709044,58810.0,58809.0,0.0830042]
[1724040452666,1.10031452,58810.0,58809.0,0.0830042]
[1724040453612,1.02399655,58810.0,58809.0,0.0830042]
[1724040454621,1.24717027,58810.0,58809.0,0.0830042]
[1724040455112,1.24728809,58810.0,58809.0,0.0830042]
[1724040455612,1.27275575,58810.0,58809.0,0.0830042]
[1724040456603,1.14541745,58810.0,58809.0,0.0830042]
[1724040458293,1.25360015,58810.0,58809.0,0.0009042]
[1724040458951,1.27660015,58810.0,58809.0,0.0009042]
[1724040459592,1.15517925,58810.0,58809.0,0.0009042]
[1724040459798,1.27624227,58810.0,58809.0,0.0009042]
[1724040460207,1.42929849,58810.0,58809.0,0.0009042]
[1724040460416,1.60998496,58810.0,58809.0,0.0009042]
[1724040460629,1.8865395,58810.0,58809.0,0.0009042]
[1724040460876,2.1245935,58810.0,58809.0,0.0009042]
[1724040461604,2.1215935,58810.0,58809.0,0.0009042]
[1724040461803,2.1285935,58810.0,58809.0,0.0019042]
[1724040462238,2.1365935,58810.0,58809.0,0.0029042]
[1724040462648,2.1285935,58810.0,58809.0,0.0019042]
[1724040462871,2.1325935,58810.0,58809.0,0.0029042]
[1724040463075,1.84383896,58810.0,58809.0,0.0029042]
[1724040463287,1.96003896,58810.0,58809.0,0.0029042]
[1724040463496,1.96086096,58810.0,58809.0,0.0029042]
[1724040464135,1.9578099,58810.0,58809.0,0.0029042]
[1724040468683,1.95661943,58810.0,58809.0,0.0029042]
[1724040470900,2.12817397,58810.0,58809.0,0.0029042]
[1724040471052,2.30040204,58810.0,58809.0,0.0029042]
[1724040471252,2.12817397,58810.0,58809.0,0.0029042]
[1724040471454,2.30040204,58810.0,58809.0,0.0029042]
[1724040471654,2.12817397,58810.0,58809.0,0.0029042]
[1724040471888,2.30140204,58810.0,58809.0,0.0029042]
[1724040472067,1.95961943,58810.0,58809.0,0.0029042]
[1724040472532,1.84141943,58810.0,58809.0,0.0029042]
[1724040472743,1.95761943,58810.0,58809.0,0.0029042]
[1724040473172,1.64865525,58810.0,58809.0,0.0029042]
[1724040473379,1.9547434,58810.0,58809.0,0.0029042]
[1724040473582,2.12629794,58810.0,58809.0,0.0029042]
[1724040475643,2.29850307,58810.0,58809.0,0.0029042]
[1724040476076,2.12629794,58810.0,58809.0,0.0029042]
[1724040476486,2.29809478,58810.0,58809.0,0.0029042]
[1724040476695,2.12588863,58810.0,58809.0,0.0029042]
[1724040477563,2.29808802,58810.0,58809.0,0.0029042]
[1724040479062,2.12588863,58810.0,58809.0,0.0029042]
[1724040479481,2.29807881,58810.0,58809.0,0.0029042]
[1724040479911,2.2990733,58810.0,58809.0,0.0029042]
[1724040480113,2.2980733,58810.0,58809.0,0.0029042]
[1724040481706,2.2990733,58810.0,58809.0,0.0029042]
[1724040482417,2.12688863,58810.0,58809.0,0.0029042]
[1724040482648,2.29905576,58810.0,58809.0,0.0029042]
[1724040482882,2.29805885,58810.0,58809.0,0.0029042]
[1724040483130,1.95433409,58810.0,58809.0,0.0029042]
[1724040483385,1.81173409,58810.0,58809.0,0.0827042]